bitfinex/quotes_BTCUSD_20250423
["timestamp","ask_amount","ask_price","bid_price","bid_amount"]
[1745431857272,0.10689014,94130.0,94103.0,0.0865144]
[1745431857273,0.00371886,94129.0,94103.0,0.0855144]
[1745431857479,0.0452,94135.0,94103.0,0.0855144]
[1745431857480,0.10689014,94128.0,94105.0,0.21252757]
[1745431858299,0.00371886,94127.0,94103.0,0.0855144]
[1745431858507,0.10689014,94126.0,94103.0,0.0855144]
[1745431858742,0.3666054,94120.0,94096.0,0.00013901]
[1745431858966,0.3666054,94110.0,94096.0,0.00013901]
[1745431859181,0.11060989,94109.0,94096.0,0.00013901]
[1745431859387,0.0456,94108.0,94104.0,0.001]
[1745431860006,0.10689014,94107.0,94103.0,0.001]
[1745431860421,0.10639014,94107.0,94103.0,0.001]
[1745431860822,0.10639014,94107.0,94096.0,0.00013901]
[1745431861440,0.0456,94108.0,94096.0,0.00013901]
[1745431862378,0.0456,94108.0,94097.0,0.21254662]
[1745431862587,0.0456,94108.0,94098.0,0.01062721]
[1745431862789,0.0456,94108.0,94096.0,0.00013901]
[1745431863025,0.0487,94110.0,94099.0,0.21254154]
[1745431863236,0.0487,94110.0,94108.0,0.0014931]
[1745431863684,0.0455,94123.0,94108.0,0.21401439]
[1745431863887,0.0455,94123.0,94108.0,0.0014931]
[1745431864101,0.03944,94123.0,94108.0,0.0014931]
[1745431864301,0.03944,94123.0,94109.0,0.01062597]
[1745431864469,0.03944,94123.0,94108.0,0.0014931]
[1745431864886,0.03944,94123.0,94115.0,0.21250379]
[1745431865649,0.03944,94123.0,94119.0,0.21249655]
[1745431865852,0.0475,94133.0,94114.0,0.21250661]
[1745431866005,0.0475,94133.0,94113.0,0.21251015]
[1745431866254,0.0475,94133.0,94109.0,0.21251755]
[1745431866425,0.0475,94133.0,94103.0,0.01062665]
[1745431866660,0.0475,94133.0,94106.0,0.34]
[1745431867014,0.0482,94132.0,94109.0,0.55251872]
[1745431867550,0.11060859,94131.0,94109.0,0.34]
[1745431867997,0.11060859,94131.0,94108.0,0.0014931]
[1745431868922,0.3666054,94130.0,94108.0,0.0014931]
[1745431869145,0.3666054,94130.0,94098.0,0.34]
[1745431869146,0.11060902,94129.0,94098.0,0.34]
[1745431870378,0.11060902,94129.0,94098.0,0.341]
[1745431870963,0.11060902,94129.0,94098.0,0.001]
[1745431871185,0.11060902,94129.0,94100.0,0.34]
[1745431871658,0.11060902,94129.0,94100.0,0.56316561]
[1745431871659,0.10689014,94129.0,94100.0,0.56316561]
[1745431871897,0.00371888,94128.0,94100.0,0.34]
[1745431872104,0.10689014,94127.0,94100.0,0.34]
[1745431872955,0.0482,94132.0,94110.0,0.21251553]
[1745431873162,0.10689014,94131.0,94111.0,0.21251332]
[1745431873384,0.0482,94132.0,94112.0,0.21251275]
[1745431873604,0.0482,94132.0,94111.0,0.0066349]
[1745431873853,0.0482,94132.0,94113.0,0.0066349]
[1745431874273,0.0482,94132.0,94114.0,0.0066349]
[1745431874704,0.0482,94132.0,94115.0,0.0066349]
[1745431875394,0.0482,94132.0,94116.0,0.0066349]
[1745431876426,0.0482,94132.0,94117.0,0.0066349]
[1745431877066,0.0482,94132.0,94118.0,0.0066349]
[1745431877710,0.0482,94132.0,94108.0,0.22314757]
[1745431877711,0.0482,94132.0,94119.0,0.0066349]
[1745431877911,0.0482,94132.0,94120.0,0.37723013]
[1745431878125,0.001,94137.0,94127.0,0.01062394]
[1745431878327,0.001,94137.0,94128.0,0.0066349]
[1745431878742,0.001,94137.0,94129.0,0.0066349]
[1745431879163,0.001,94137.0,94130.0,0.0066349]
[1745431879923,0.001,94137.0,94131.0,0.0066349]
[1745431880307,0.001,94137.0,94132.0,0.0066349]
[1745431881179,0.0479,94143.0,94140.0,2.499]
[1745431881385,0.04803898,94143.0,94140.0,2.499]
[1745431881809,0.04803898,94143.0,94141.0,0.0066349]
[1745431882221,0.04803898,94143.0,94142.0,0.0066349]
[1745431885205,0.15492912,94143.0,94142.0,0.0066349]
[1745431885486,0.21244728,94141.0,94140.0,2.4088349]
[1745431885721,0.31933742,94141.0,94140.0,2.3620349]
[1745431886788,0.10689014,94141.0,94140.0,2.3620349]
[1745431888746,0.11989014,94141.0,94140.0,2.3620349]
[1745431890043,0.013,94141.0,94140.0,2.3620349]
[1745431890731,0.007,94141.0,94140.0,2.3620349]
[1745431890954,0.007,94141.0,94140.0,2.3630349]
[1745431891841,0.00013898,94143.0,94140.0,2.3630349]
[1745431892075,0.004,94141.0,94140.0,2.3630349]
[1745431892292,0.004,94141.0,94140.0,2.36214612]
[1745431892501,0.006,94141.0,94140.0,2.36214612]
[1745431892713,0.00013898,94143.0,94140.0,2.36214612]
[1745431892957,0.003,94141.0,94140.0,2.36214612]
[1745431893599,0.005,94141.0,94140.0,2.36214612]
[1745431894873,0.002,94141.0,94140.0,2.36214612]
[1745431896184,0.005,94141.0,94140.0,2.36214612]
[1745431897519,0.005,94141.0,94140.0,2.36877965]
[1745431898163,0.11189014,94141.0,94140.0,2.36877965]
[1745431898379,0.11189014,94141.0,94140.0,2.61877965]
[1745431898588,0.16119014,94141.0,94140.0,2.61877965]
[1745431899502,0.15619014,94141.0,94140.0,2.61214612]
[1745431899722,0.16119014,94141.0,94140.0,2.61214612]
[1745431900146,0.16519014,94141.0,94140.0,2.61214612]
[1745431900938,0.16219014,94141.0,94140.0,2.61214612]
[1745431901160,0.16919014,94141.0,94140.0,2.61214612]
[1745431902235,0.11989014,94141.0,94140.0,2.61114612]
[1745431902662,0.11989014,94141.0,94140.0,2.61878047]
[1745431904360,0.10689014,94141.0,94140.0,2.61878047]
[1745431904976,0.11389014,94141.0,94140.0,2.61878047]
[1745431905402,0.007,94141.0,94140.0,2.61878047]
[1745431907408,0.10989014,94141.0,94140.0,2.61878047]
[1745431907620,0.10689014,94141.0,94140.0,2.61878047]
[1745431907823,0.10789014,94141.0,94140.0,2.61878047]
[1745431908028,0.10889014,94141.0,94140.0,2.61878047]
[1745431908463,0.10689014,94141.0,94140.0,2.61878047]
[1745431908858,0.11089014,94141.0,94140.0,2.61878047]
[1745431909010,0.11389014,94141.0,94140.0,2.61878047]
[1745431909208,0.10689014,94141.0,94140.0,2.61878047]
[1745431910571,0.11689014,94141.0,94140.0,2.36878047]
[1745431912038,0.15339512,94141.0,94140.0,2.36878047]
[1745431912495,0.11689014,94141.0,94140.0,2.36878047]
[1745431916809,0.01,94141.0,94140.0,2.36878047]
[1745431917751,0.005,94141.0,94140.0,2.36878047]
[1745431917963,0.002,94141.0,94140.0,2.36878047]
[1745431918312,0.00013898,94143.0,94140.0,2.36878047]
[1745431918313,0.00013898,94143.0,94141.0,0.246]
[1745431918543,0.10689014,94142.0,94141.0,0.246]
[1745431918765,0.10689014,94142.0,94141.0,0.25263435]
[1745431918946,0.16277733,94142.0,94141.0,0.25263435]
[1745431919149,0.15359014,94142.0,94141.0,0.25263435]
[1745431919693,0.15730857,94142.0,94141.0,0.246]
[1745431919840,0.15359014,94142.0,94141.0,0.246]
[1745431920454,0.15959014,94142.0,94141.0,0.246]
[1745431920849,0.15359014,94142.0,94141.0,0.246]
[1745431921339,0.16259014,94142.0,94141.0,0.247]
[1745431921550,0.12089014,94142.0,94141.0,0.247]
[1745431921656,0.11589014,94142.0,94141.0,0.247]
[1745431922056,0.11989014,94142.0,94141.0,0.247]
[1745431922302,0.11989014,94142.0,94141.0,0.25363452]
[1745431922475,0.11489014,94142.0,94141.0,0.25263452]
[1745431922874,0.11989014,94142.0,94141.0,0.25263452]
[1745431923083,0.12360837,94142.0,94141.0,0.25263452]
[1745431923329,0.13314922,94142.0,94141.0,0.25263452]
[1745431923568,0.12943099,94142.0,94141.0,0.25263452]
[1745431923771,0.13443099,94142.0,94141.0,0.25263452]
[1745431923930,0.13443099,94142.0,94141.0,0.246]
[1745431924133,0.13443099,94142.0,94141.0,0.02362836]
[1745431924472,0.13814956,94142.0,94141.0,0.02362836]
[1745431924674,0.13443099,94142.0,94141.0,0.02362836]
[1745431925031,0.13814956,94142.0,94141.0,0.02362836]
[1745431925680,0.13443099,94142.0,94141.0,0.02362836]
[1745431925849,0.11989014,94142.0,94141.0,0.02362836]
[1745431926657,0.11989014,94142.0,94140.0,2.19153609]
[1745431926855,0.11989014,94142.0,94141.0,0.00663424]
[1745431927475,0.11489014,94142.0,94141.0,0.00663424]
[1745431928811,0.12089014,94142.0,94141.0,0.00663424]
[1745431929700,0.11489014,94142.0,94141.0,0.00663424]
[1745431929941,0.11489014,94142.0,94141.0,0.01265165]
[1745431930287,0.12089014,94142.0,94141.0,0.00663424]
[1745431930480,0.12074941,94142.0,94141.0,0.00663424]
[1745431931510,0.11274941,94142.0,94141.0,0.00663424]
[1745431931715,0.10774941,94142.0,94141.0,0.00663424]
[1745431932046,0.11174941,94142.0,94141.0,0.00663424]
[1745431932448,0.10774941,94142.0,94141.0,0.00763424]
[1745431933431,0.10874941,94142.0,94141.0,0.00763424]
[1745431935442,0.00013898,94143.0,94141.0,0.00763424]
[1745431935833,0.001,94142.0,94141.0,0.001]
[1745431936178,0.10702912,94143.0,94141.0,0.001]
[1745431936384,0.002,94142.0,94141.0,0.001]
[1745431936816,0.002,94142.0,94141.0,0.002]
[1745431936975,0.002,94142.0,94141.0,0.00863371]
[1745431937899,0.001,94142.0,94141.0,0.00863371]
[1745431938097,0.10702912,94143.0,94141.0,0.00863371]
[1745431938322,0.10802912,94143.0,94141.0,0.00863371]
[1745431938522,0.10802912,94143.0,94141.0,0.00763371]
[1745431938993,0.002,94142.0,94141.0,0.001]
[1745431939150,0.001,94142.0,94141.0,0.001]
[1745431939358,0.10702912,94143.0,94141.0,0.00763329]
[1745431939556,0.10802912,94143.0,94141.0,0.00763329]
[1745431939787,0.002,94143.0,94142.0,0.0909]
[1745431939944,0.002,94143.0,94142.0,0.43753329]
[1745431940968,0.001,94143.0,94142.0,0.43753329]
[1745431941165,0.001,94143.0,94142.0,0.30997831]
[1745431941427,0.02,94159.0,94143.0,0.35062213]
[1745431941578,0.02,94159.0,94145.0,0.34]
[1745431941777,0.02,94159.0,94146.0,0.21243593]
[1745431941942,0.02,94159.0,94147.0,0.00663329]
[1745431942348,0.02,94159.0,94148.0,0.00663329]
[1745431943379,0.02,94159.0,94148.0,0.16031329]
[1745431943587,0.02,94159.0,94148.0,0.37274478]
[1745431944425,0.02,94159.0,94148.0,0.16031329]
[1745431944778,0.02,94159.0,94148.0,0.16231329]
[1745431946195,0.02,94159.0,94148.0,0.16431329]
[1745431946819,0.02,94159.0,94148.0,0.37674478]
[1745431949665,0.02,94159.0,94148.0,0.71674478]
[1745431952139,0.02,94159.0,94148.0,0.16348601]
[1745431952586,0.02,94159.0,94148.0,0.00980601]
[1745431952587,0.02371762,94159.0,94148.0,0.00980601]
[1745431952777,0.02,94159.0,94148.0,0.00980601]
[1745431953674,0.00371772,94158.0,94148.0,0.00580601]
[1745431953899,0.003,94149.0,94148.0,0.00580601]
[1745431954094,0.11089014,94149.0,94148.0,0.00580601]
[1745431954617,0.10989014,94149.0,94148.0,0.00580601]
[1745431955059,0.11189014,94149.0,94148.0,0.00580601]
[1745431955285,0.11089014,94149.0,94148.0,0.00580601]
[1745431955738,0.11189014,94149.0,94148.0,0.00580601]
[1745431956380,0.38777796,94149.0,94148.0,0.00580601]
[1745431956580,0.32731937,94149.0,94148.0,0.00580601]
[1745431957187,0.212436,94146.0,94145.0,2.19053609]
[1745431957339,0.31932614,94146.0,94145.0,2.19053609]
[1745431958231,0.32132614,94146.0,94145.0,2.19053609]
[1745431958460,0.10889014,94146.0,94145.0,2.19053609]
[1745431959214,0.10989014,94146.0,94145.0,2.19053609]
[1745431960967,0.32232614,94146.0,94145.0,2.19053609]
[1745431961424,0.10989014,94146.0,94145.0,2.19053609]
[1745431963954,0.10889014,94146.0,94145.0,2.19053609]
[1745431964362,0.10889014,94146.0,94145.0,2.19716997]
[1745431964512,0.10889014,94146.0,94145.0,2.03835831]
[1745431971290,0.22303488,94156.0,94155.0,1.6871737]
[1745431971291,0.01062067,94156.0,94155.0,1.6871737]
[1745431971470,0.11751081,94156.0,94155.0,1.6871737]
[1745431971718,0.11855712,94156.0,94155.0,1.6871737]
[1745431971918,0.11855712,94156.0,94155.0,1.69380758]
[1745431972619,0.12255712,94156.0,94155.0,1.69380758]
[1745431972823,0.12555712,94156.0,94155.0,1.69380758]
[1745431974924,0.12555712,94156.0,94155.0,1.6908231]
[1745431976216,0.12927498,94156.0,94155.0,1.6908231]
[1745431976417,0.12555712,94156.0,94155.0,1.6908231]
[1745431976943,0.12927498,94156.0,94155.0,1.68418922]
[1745431977155,0.12555712,94156.0,94155.0,1.68418922]
[1745431977975,0.12555712,94156.0,94155.0,1.69082342]
[1745431978173,0.34168842,94156.0,94155.0,1.69082342]
[1745431978423,0.33797056,94156.0,94155.0,1.68418922]
[1745431982232,0.11493645,94156.0,94155.0,1.68418922]
[1745431982436,0.11493645,94156.0,94155.0,1.69082327]
[1745431983342,0.11493645,94156.0,94155.0,1.69020663]
[1745431983560,0.11493645,94156.0,94155.0,1.69082294]
[1745431986434,0.11865405,94156.0,94155.0,1.69082294]
[1745431986963,0.11493645,94156.0,94155.0,1.69082294]
[1745431989656,0.11493645,94156.0,94155.0,1.68418922]
[1745431989828,0.32734989,94156.0,94155.0,1.68418922]
[1745431991691,0.32734989,94156.0,94155.0,1.69082363]
[1745431994187,0.11493645,94156.0,94155.0,1.69082363]
[1745431994398,0.11493645,94156.0,94155.0,1.73832363]
[1745432000008,0.32734989,94156.0,94155.0,1.69082363]
[1745432002953,0.34289074,94156.0,94155.0,1.69082363]
[1745432003620,0.34289074,94156.0,94155.0,1.68418922]
[1745432010944,0.34089074,94156.0,94155.0,1.68418922]
[1745432014010,0.34089074,94156.0,94155.0,1.47519557]
[1745432014232,0.44397074,94156.0,94155.0,1.47519557]
[1745432022140,0.21701645,94156.0,94155.0,1.47519557]
[1745432022552,0.11393645,94156.0,94155.0,1.47519557]
[1745432022968,0.11393645,94156.0,94155.0,1.52049557]
[1745432023520,0.32634989,94156.0,94155.0,1.52049557]
[1745432023730,0.33689074,94156.0,94155.0,1.52049557]
[1745432023924,0.33689074,94156.0,94155.0,1.47442553]
[1745432024136,0.52094723,94156.0,94155.0,1.47442553]
[1745432024340,0.43643283,94156.0,94155.0,1.47442553]
[1745432024743,0.33689074,94156.0,94155.0,1.47442553]
[1745432024957,0.33689074,94156.0,94155.0,1.28828234]
[1745432025361,0.33489074,94156.0,94155.0,1.28828234]
[1745432025580,0.33689074,94156.0,94155.0,1.28828234]
[1745432025973,0.33789074,94156.0,94155.0,1.28828234]
[1745432026175,0.33489074,94156.0,94155.0,1.28828234]
[1745432026377,0.33989074,94156.0,94155.0,1.28828234]
[1745432027056,0.36376132,94156.0,94155.0,1.28828234]
[1745432027270,0.36450033,94156.0,94155.0,1.28828234]
[1745432027861,0.41450033,94156.0,94155.0,1.28828234]
[1745432029635,0.36450033,94156.0,94155.0,1.28828234]
[1745432030077,0.87030033,94156.0,94155.0,1.28828234]
[1745432030313,1.25900033,94156.0,94155.0,0.12754307]
[1745432030532,1.36589047,94156.0,94155.0,0.12754307]
[1745432030977,1.36089047,94156.0,94155.0,0.12754307]
[1745432031538,1.35589047,94156.0,94155.0,0.12754307]
[1745432031792,1.35589047,94156.0,94155.0,0.12854307]
[1745432031793,1.37304695,94156.0,94155.0,0.12854307]
[1745432032200,1.38104695,94156.0,94155.0,0.12854307]
[1745432032686,1.38104695,94156.0,94137.0,0.03596932]
[1745432032687,0.2279949,94138.0,94137.0,0.03596932]
[1745432032830,0.2279949,94138.0,94117.0,0.0008506]
[1745432032831,0.22704005,94118.0,94117.0,0.0008506]
[1745432033043,0.35380077,94118.0,94117.0,0.0008506]
[1745432034120,0.35386959,94118.0,94117.0,0.0008506]
[1745432034578,0.76386959,94118.0,94117.0,0.0008506]
[1745432034785,0.87075973,94118.0,94117.0,0.0008506]
[1745432034988,0.76386959,94118.0,94117.0,0.0008506]
[1745432035970,0.76786959,94118.0,94117.0,0.0008506]
[1745432036172,0.77086959,94118.0,94117.0,0.0008506]
[1745432036431,0.82086959,94118.0,94117.0,0.0008506]
[1745432037151,1.16086959,94118.0,94117.0,0.0008506]
[1745432037357,1.35985973,94118.0,94117.0,0.0008506]
[1745432038201,1.35585973,94118.0,94117.0,0.0008506]
[1745432038435,1.36085973,94118.0,94117.0,0.0008506]
[1745432038663,1.35785973,94118.0,94117.0,0.0008506]
[1745432038868,1.36085973,94118.0,94117.0,1e-08]
[1745432040017,1.36640115,94118.0,94117.0,1e-08]
[1745432040217,1.37381663,94118.0,94117.0,1e-08]
[1745432041063,1.15558564,94118.0,94117.0,1e-08]
[1745432041267,0.77028564,94118.0,94117.0,1e-08]
[1745432041472,0.76928564,94118.0,94117.0,1e-08]
[1745432041676,0.87027016,94118.0,94117.0,1e-08]
[1745432042383,0.88381101,94118.0,94117.0,1e-08]
[1745432042589,0.88481101,94118.0,94117.0,1e-08]
[1745432042795,0.86494043,94118.0,94117.0,1e-08]
[1745432043597,0.84939958,94118.0,94117.0,1e-08]
[1745432043800,1.22974339,94118.0,94117.0,1e-08]
[1745432044006,0.91372874,94118.0,94117.0,1e-08]
[1745432045061,0.82086959,94118.0,94117.0,1e-08]
[1745432045274,0.92826959,94118.0,94117.0,1e-08]
[1745432045496,0.90939901,94118.0,94117.0,1e-08]
[1745432045734,1.03615973,94118.0,94117.0,1e-08]
[1745432047756,0.92926959,94118.0,94117.0,1e-08]
[1745432051367,0.91372874,94118.0,94117.0,1e-08]
[1745432051580,0.86372874,94118.0,94117.0,1e-08]
[1745432051787,0.91372874,94118.0,94117.0,1e-08]
[1745432051986,0.92926959,94118.0,94117.0,1e-08]
[1745432052223,0.91630232,94118.0,94117.0,1e-08]
[1745432052425,1.02806232,94118.0,94117.0,1e-08]
[1745432054731,0.97806232,94118.0,94117.0,1e-08]
[1745432054939,1.02806232,94118.0,94117.0,1e-08]
[1745432055783,1.03548802,94118.0,94117.0,1e-08]
[1745432056854,0.01454085,94092.0,94077.0,0.0465]
[1745432057067,0.05,94097.0,94054.0,0.0465]
[1745432057068,0.61714396,94072.0,94054.0,0.0465]
[1745432057322,0.40454085,94060.0,94059.0,1e-08]
[1745432057569,0.66306157,94060.0,94059.0,1e-08]
[1745432058214,0.8746918,94060.0,94059.0,1e-08]
[1745432058436,0.87480968,94060.0,94059.0,1e-08]
[1745432058654,0.66217945,94060.0,94059.0,0.00100001]
[1745432058884,0.25317945,94060.0,94059.0,0.00100001]
[1745432059308,0.25517945,94060.0,94059.0,0.00100001]
[1745432059543,0.25517945,94060.0,94036.0,0.0465]
[1745432059544,0.21269355,94032.0,94031.0,0.002]
[1745432059757,0.61825476,94023.0,94022.0,1e-08]
[1745432059993,0.22727964,94012.0,94011.0,0.00118287]
[1745432060233,0.33416978,94012.0,94011.0,0.00118287]
[1745432061140,0.35404036,94012.0,94011.0,0.0016466]
[1745432061727,0.33516978,94012.0,94011.0,0.0056466]
[1745432062240,0.33616978,94012.0,94011.0,0.0106466]
[1745432062638,0.12343099,94012.0,94011.0,0.0106466]
[1745432063055,0.001,94012.0,94011.0,0.0076466]
[1745432063262,0.00796549,94031.0,94011.0,0.0592466]
[1745432063472,0.001,94012.0,94011.0,0.0592466]
[1745432063708,0.10689014,94030.0,94011.0,0.0592466]
[1745432063937,0.10689014,94030.0,94012.0,0.0471]
[1745432064371,0.10689014,94030.0,94020.0,0.3666054]
[1745432064589,0.10689014,94030.0,94014.0,0.21273202]
[1745432065051,0.10689014,94030.0,94012.0,0.0471]
[1745432065052,0.00372236,94029.0,94012.0,0.0471]
[1745432065286,0.10689014,94028.0,94012.0,0.0521]
[1745432065498,0.10689014,94028.0,94012.0,0.0471]
[1745432065712,0.10689014,94028.0,94014.0,0.01]
[1745432065921,0.002,94030.0,94016.0,0.01063648]
[1745432066137,0.10789014,94030.0,94020.0,0.21272058]
[1745432066335,0.001,94029.0,94021.0,0.0473]
[1745432067693,0.001,94029.0,94022.0,0.21271617]
[1745432068104,0.001,94030.0,94022.0,0.21271617]
[1745432068527,0.001,94030.0,94021.0,0.0473]
[1745432068783,0.001,94028.0,94021.0,0.0473]
[1745432069216,0.001,94028.0,94022.0,0.007]
[1745432069443,0.001,94029.0,94021.0,0.0543]
[1745432069759,0.001,94030.0,94021.0,0.0523]
[1745432069977,0.01454085,94051.0,94021.0,0.0473]
[1745432070185,0.001,94028.0,94021.0,0.0543]
[1745432070387,0.001,94028.0,94022.0,0.005]
[1745432070804,0.09213144,94050.0,94022.0,0.005]
[1745432071202,0.01063343,94043.0,94022.0,0.005]
[1745432071410,0.11061222,94042.0,94022.0,0.005]
[1745432071629,0.10689014,94042.0,94022.0,0.005]
[1745432071831,0.10689014,94042.0,94021.0,0.0473]
[1745432072026,0.001,94030.0,94021.0,0.0543]
[1745432072534,0.002,94030.0,94021.0,0.0613]
[1745432072719,0.10689014,94029.0,94021.0,0.0613]
[1745432072925,0.01063546,94025.0,94021.0,0.007]
[1745432073132,0.11061296,94024.0,94022.0,0.006]
[1745432073454,0.10689014,94024.0,94021.0,0.007]
[1745432073657,0.10689014,94024.0,94012.0,0.0471]
[1745432073842,0.10689014,94024.0,94021.0,0.007]
[1745432074070,0.001,94029.0,94021.0,0.007]
[1745432074249,0.10689014,94028.0,94012.0,0.0471]
[1745432075037,0.001,94030.0,94017.0,0.21272531]
[1745432075233,0.002,94030.0,94021.0,0.007]
[1745432075663,0.001,94024.0,94021.0,0.014]
[1745432075854,0.001,94024.0,94021.0,0.007]
[1745432076635,0.001,94028.0,94021.0,0.007]
[1745432077054,0.003,94030.0,94021.0,0.007]
[1745432077442,0.10689014,94029.0,94012.0,0.0471]
[1745432077650,0.00372246,94028.0,94012.0,0.0471]
[1745432077862,0.10689014,94027.0,94012.0,0.0471]
[1745432078688,0.001,94024.0,94021.0,0.014]
[1745432078883,0.10689014,94023.0,94021.0,0.014]
[1745432079101,0.001,94024.0,94021.0,0.014]
[1745432079314,0.001,94030.0,94012.0,0.05773693]
[1745432079512,0.001,94030.0,94015.0,0.21273118]
[1745432079718,0.002,94027.0,94015.0,0.21273118]
[1745432080193,0.001,94027.0,94021.0,0.006]
[1745432080429,0.001,94024.0,94016.0,0.21272891]
[1745432080713,0.001,94024.0,94012.0,0.0551]
[1745432080921,0.001,94024.0,94015.0,0.007]
[1745432081981,0.001,94024.0,94015.0,0.015]
[1745432082197,0.001,94027.0,94015.0,0.22073074]
[1745432082408,0.002,94027.0,94021.0,0.006]
[1745432082638,0.001,94027.0,94021.0,0.006]
[1745432082840,0.001,94024.0,94021.0,0.006]
[1745432083057,0.002,94024.0,94021.0,0.006]
[1745432083344,0.002,94024.0,94017.0,0.21272641]
[1745432083550,0.002,94024.0,94018.0,0.21272522]
[1745432083807,0.001,94024.0,94012.0,0.0471]
[1745432084013,0.02517473,94039.0,94012.0,0.0471]
[1745432084267,0.10689014,94038.0,94012.0,0.0471]
[1745432085183,0.001,94027.0,94021.0,0.006]
[1745432085386,0.10689014,94026.0,94021.0,0.006]
[1745432085608,0.01163558,94024.0,94021.0,0.006]
[1745432085834,0.10689014,94023.0,94012.0,0.008]
[1745432086051,0.00372298,94022.0,94012.0,0.016]
[1745432086261,0.10689014,94021.0,94012.0,0.016]
[1745432086448,0.00372301,94020.0,94011.0,0.0016466]
[1745432086654,0.09489014,94019.0,94011.0,0.0016466]
[1745432087280,0.09489014,94019.0,94012.0,0.008]
[1745432087504,0.09489014,94019.0,94011.0,0.0016466]
[1745432088324,0.09489014,94019.0,94012.0,0.006]
[1745432088678,0.09489014,94019.0,94011.0,0.0056466]
[1745432088888,0.09589014,94019.0,94011.0,0.0056466]
[1745432089121,0.002,94019.0,94011.0,0.0106466]
[1745432089981,0.01063626,94018.0,94011.0,0.0106466]
[1745432090214,0.00372305,94017.0,94011.0,0.0106466]
[1745432090422,0.10689014,94016.0,94011.0,0.0106466]
[1745432091143,0.10689014,94016.0,94011.0,0.0056466]
[1745432091361,0.10689014,94016.0,94011.0,0.0106466]
[1745432091802,0.10689014,94016.0,94011.0,0.0016466]
[1745432092004,0.01454085,94036.0,94011.0,0.0016466]
[1745432092206,0.001,94016.0,94011.0,0.0106466]
[1745432092416,0.001,94016.0,94011.0,0.0066466]
[1745432092873,0.002,94016.0,94011.0,0.0106466]
[1745432093078,0.001,94016.0,94011.0,0.0056466]
[1745432094088,0.10689014,94015.0,94011.0,0.0056466]
[1745432094291,0.00372298,94014.0,94011.0,0.0056466]
[1745432094501,0.11061312,94014.0,94011.0,0.0106466]
[1745432094702,0.10689014,94013.0,94011.0,0.0106466]
[1745432095162,0.10689014,94013.0,94011.0,0.0066466]
[1745432095432,0.00372303,94012.0,94011.0,0.0106466]
[1745432095647,0.10689014,94012.0,94011.0,0.0056466]
[1745432095852,0.10689014,94012.0,94011.0,0.0066466]
[1745432096055,0.10689014,94012.0,94011.0,0.0106466]
[1745432096384,0.10689014,94012.0,94011.0,0.0016466]
[1745432096589,0.10689014,94012.0,94011.0,0.0056466]
[1745432096590,0.10789014,94012.0,94011.0,0.0056466]
[1745432098327,0.10889014,94012.0,94011.0,0.0106466]
[1745432101015,0.002,94012.0,94011.0,0.0106466]
[1745432101250,0.002,94012.0,94005.0,0.21275298]
[1745432101475,0.002,94012.0,94005.0,0.00013898]
[1745432102304,0.001,94012.0,94005.0,0.00013898]
[1745432102511,0.001,94012.0,94005.0,0.00613898]
[1745432102755,0.002,94012.0,94005.0,0.01213898]
[1745432103253,0.002,94012.0,94007.0,0.0106375]
[1745432103466,0.002,94012.0,94005.0,0.01213898]
[1745432104084,0.001,94012.0,94005.0,0.00613898]
[1745432104370,0.002,94012.0,94007.0,0.004]
[1745432104825,0.001,94012.0,94005.0,0.00613898]
[1745432105288,0.10689014,94011.0,94005.0,0.00613898]
[1745432105508,0.01063727,94009.0,94005.0,0.00013898]
[1745432105734,0.10689014,94008.0,94007.0,0.003]
[1745432106179,0.10689014,94008.0,94005.0,0.00013898]
[1745432106391,0.10689014,94008.0,94005.0,0.00313898]
[1745432106831,0.10689014,94008.0,94005.0,0.00013898]
[1745432107039,0.001,94008.0,94007.0,0.003]
[1745432107260,0.001,94008.0,94005.0,0.00013898]
[1745432108166,0.001,94008.0,94005.0,0.00513898]
[1745432108584,0.002,94008.0,94005.0,0.00313898]
[1745432108792,0.003,94008.0,94005.0,0.00613898]
[1745432110619,0.10689014,94007.0,94005.0,0.00613898]
[1745432110859,0.1106135,94007.0,94005.0,0.00613898]
[1745432111039,0.10689014,94007.0,94005.0,0.00613898]
[1745432111245,0.31964048,94007.0,94005.0,0.00613898]
[1745432111462,0.10689014,94007.0,94005.0,0.00613898]
[1745432111677,0.21275237,94006.0,94005.0,0.00313898]
[1745432111888,0.10689014,94006.0,94005.0,0.00613898]
[1745432112102,0.10689014,94006.0,94005.0,0.00313898]
[1745432112512,0.10789014,94006.0,94005.0,0.00613898]
[1745432112727,0.10789014,94006.0,94005.0,0.00013898]
[1745432112957,0.10989014,94006.0,94005.0,0.00613898]
[1745432116628,0.32264251,94006.0,94005.0,0.00613898]
[1745432118456,0.003,94006.0,94005.0,0.00613898]
[1745432118680,0.003,94006.0,94005.0,0.05593898]
[1745432130832,0.002,94006.0,94005.0,0.05593898]
[1745432134133,0.02,94007.0,94005.0,0.05593898]
[1745432134134,0.00099898,94007.0,94006.0,0.59945237]
[1745432134320,0.0004258,94050.0,94006.0,0.70634251]
[1745432134547,0.00888302,94044.0,94036.0,0.01063422]
[1745432134746,0.00888302,94044.0,94035.0,0.0467]
[1745432134955,0.0014258,94044.0,94036.0,0.21268363]
[1745432135170,0.0014258,94044.0,94035.0,0.0467]
[1745432135777,0.0014258,94044.0,94035.0,0.04683898]
[1745432135991,0.0014258,94044.0,94035.0,0.25952543]
[1745432136413,0.0024258,94044.0,94039.0,0.22330993]
[1745432136613,0.0024258,94044.0,94036.0,0.01463422]
[1745432136614,0.0014258,94044.0,94038.0,0.01063399]
[1745432136817,0.0014258,94044.0,94038.0,0.22331338]
[1745432137008,0.0014258,94044.0,94035.0,0.04683898]
[1745432137758,0.0014258,94044.0,94035.0,0.04783898]
[1745432138742,0.0014258,94044.0,94035.0,0.05847331]
[1745432139041,0.0014258,94044.0,94035.0,0.04783898]
[1745432139536,0.0014258,94044.0,94040.0,0.22330883]
[1745432139691,0.0014258,94044.0,94040.0,0.01063377]
[1745432139897,0.0014258,94044.0,94041.0,0.2126727]
[1745432140099,0.0014258,94044.0,94043.0,0.0475]
[1745432140307,0.0014258,94044.0,94043.0,0.49439014]
[1745432140788,0.0014258,94044.0,94043.0,0.75545881]
[1745432141741,0.0014258,94044.0,94043.0,0.0959]
[1745432142042,0.0024258,94044.0,94043.0,0.0989]
[1745432142272,0.0014258,94044.0,94043.0,0.0989]
[1745432142689,0.0014258,94044.0,94043.0,0.0999]